bitfinex-derivatives/quotes_SOLF0:USTF0_20251125
["timestamp","ask_amount","ask_price","bid_price","bid_amount"]
[1764066544514,12.34,136.45,136.44,2.98]
[1764066545213,12.34,136.45,136.44,6.29023181]
[1764066546413,2.69,136.52,136.44,41.9167789]
[1764066546608,2.69,136.52,136.48,3.31023181]
[1764066547007,2.69,136.52,136.47,3.36660097]
[1764066548608,3.17,136.51,136.47,3.36660097]
[1764066551806,3.17,136.51,136.47,0.05636916]
[1764066552011,3.17,136.49,136.4,13.56654709]
[1764066552213,3.17,136.49,136.42,3.31023181]
[1764066552405,3.17,136.49,136.39,35.54924884]
[1764066552601,3.17,136.47,136.41,3.31023181]
[1764066553012,3.22407418,136.45,136.43,0.05128602]
[1764066560518,3.22407418,136.45,136.43,2.16792467]
[1764066560720,3.22407418,136.45,136.43,0.05128602]
[1764066561016,3.22407418,136.45,136.44,2.11663865]
[1764066562114,0.05407418,136.45,136.44,2.11663865]
[1764066564213,3.22407418,136.45,136.44,2.11663865]
[1764066566122,3.22407418,136.45,136.43,2.16792467]
[1764066566917,3.22407418,136.45,136.43,0.05128602]
[1764066567114,3.22407418,136.45,136.43,2.16792467]
[1764066568718,3.22407418,136.45,136.43,0.05128602]
[1764066571124,9.82217418,136.45,136.43,0.05128602]
[1764066571426,3.17,136.44,136.43,0.05128602]
[1764066583721,3.17,136.42,136.39,21.98270175]
[1764066584029,3.17,136.42,136.38,13.56654709]
[1764066584428,3.17,136.41,136.38,13.56654709]
[1764066584633,3.17,136.41,136.37,13.56654709]
[1764066584830,6.5996,136.42,136.37,13.56654709]
[1764066584831,3.22526973,136.4,136.38,0.05267991]
[1764066587037,9.82576973,136.4,136.38,0.05267991]
[1764066587239,3.22526973,136.4,136.38,0.05267991]
[1764066588445,0.05526973,136.4,136.38,2.16931856]
[1764066590643,3.22526973,136.4,136.38,0.05267991]
[1764066600647,5.34190838,136.4,136.38,0.00267991]
[1764066600848,3.03,136.39,136.34,13.56654709]
[1764066601951,3.03,136.39,136.35,0.04671073]
[1764066603144,3.03,136.37,136.35,0.04671073]
[1764066603347,3.03,136.35,136.32,22.27226052]
[1764066603550,3.03,136.33,136.3,13.56654709]
[1764066603748,3.03,136.31,136.26,13.56654709]
[1764066604448,3.03,136.29,136.27,0.05039175]
[1764066605744,0.05209064,136.3,136.27,0.05039175]
[1764066606447,0.05209064,136.3,136.27,6.65699175]
[1764066607047,3.08209064,136.3,136.27,0.05039175]
[1764066613162,3.08209064,136.3,136.27,2.1670304]
[1764066613861,3.08209064,136.3,136.27,0.05039175]
[1764066614355,3.08209064,136.3,136.27,2.1670304]
[1764066619862,3.08209064,136.3,136.27,0.05039175]
[1764066620061,3.08209064,136.3,136.27,2.1670304]
[1764066620564,3.08209064,136.3,136.27,0.05039175]
[1764066625563,3.08209064,136.3,136.27,6.65709175]
[1764066634084,14.27,136.29,136.27,6.65709175]
[1764066636886,2.96,136.28,136.27,0.05039175]
[1764066645790,2.96,136.28,136.24,25.09385076]
[1764066646894,2.96,136.28,136.25,0.04905537]
[1764066648183,2.96,136.28,136.27,13.59129299]
[1764066654394,2.96,136.28,136.25,6.65665537]
[1764066654987,11.31,136.29,136.26,3.31429548]
[1764066655183,11.31,136.29,136.28,3.31429548]
[1764066655887,14.39,136.29,136.28,3.31429548]
[1764066656088,14.39,136.29,136.28,16.90090281]
[1764066657599,11.31,136.29,136.28,16.90090281]
[1764066658400,14.34,136.29,136.28,16.90090281]
[1764066658601,11.31,136.29,136.28,3.31429548]
[1764066661805,0.05209064,136.3,136.29,6.6058]
[1764066662109,3.03,136.34,136.29,6.6058]
[1764066662298,3.03,136.34,136.31,16.8922241]
[1764066663008,3.07754394,136.34,136.31,16.94621581]
[1764066666110,3.07754394,136.34,136.32,13.57792862]
[1764066666307,3.07754394,136.34,136.31,16.94621581]
[1764066666507,3.07754394,136.34,136.31,13.63192033]
[1764066666714,3.07754394,136.34,136.31,0.00399171]
[1764066667305,3.03,136.32,136.31,0.00399171]
[1764066674819,3.03,136.3,136.27,13.57792862]
[1764066675822,0.05628598,136.3,136.29,13.57792862]
[1764066676121,0.05628598,136.3,136.28,3.31429548]
[1764066676519,3.08628598,136.3,136.28,3.31429548]
[1764066678916,0.05628598,136.3,136.28,3.31429548]
[1764066679422,0.05628598,136.3,136.28,28.10034836]
[1764066680521,0.05628598,136.3,136.29,20.29995636]
[1764066681019,0.05628598,136.3,136.29,2.12010348]
[1764066686326,2.93,136.34,136.29,2.12010348]
[1764066686531,2.93,136.34,136.31,2.12010348]
[1764066687419,2.9819095,136.34,136.31,2.17389286]
[1764066690622,2.9819095,136.34,136.31,0.05378938]
[1764066690828,2.93,136.33,136.31,0.05378938]
[1764066691527,2.93,136.32,136.31,0.05378938]
[1764066692124,2.93,136.32,136.31,0.00378938]
[1764066707042,5.05010348,136.32,136.31,0.00378938]
[1764066715552,11.65440348,136.32,136.31,0.00378938]
[1764066722457,2.94,136.28,136.24,24.76955528]
[1764066722857,2.94,136.26,136.24,24.76955528]
[1764066723452,0.05587696,136.26,136.25,2.99]
[1764066724352,2.94,136.25,136.24,0.0563615]
[1764066726161,6.6083,136.24,136.17,19.45717491]
[1764066726364,2.94,136.22,136.18,2.99]
[1764066727061,2.94,136.21,136.18,2.99]
[1764066727458,2.98780575,136.21,136.18,3.04530605]
[1764066728158,2.94,136.2,136.18,0.05530605]
[1764066728657,2.94,136.19,136.18,0.05530605]
[1764066729265,9.5504,136.2,136.18,0.05530605]
[1764066729461,0.04780575,136.21,136.18,3.04530605]
[1764066729762,2.98780575,136.21,136.18,3.04530605]
[1764066731966,0.04780575,136.21,136.18,3.04530605]
[1764066737264,0.04780575,136.21,136.18,5.16540953]
[1764066737470,0.04780575,136.21,136.19,2.95]
[1764066737869,0.04780575,136.21,136.2,5.07010348]
[1764066738064,2.9,136.29,136.21,2.95]
[1764066738262,2.9,136.29,136.24,2.95]
[1764066738957,0.05401839,136.28,136.26,2.95]
[1764066741568,0.00401839,136.28,136.26,2.95]
[1764066742975,2.9,136.36,136.27,2.91]
[1764066743168,2.9,136.36,136.28,2.91]
[1764066744075,9.5025,136.36,136.3,2.91]
[1764066744464,2.95284263,136.34,136.32,0.05265171]
[1764066747371,0.05284263,136.34,136.32,2.96265171]
[1764066751177,2.9,136.4,136.33,2.91]
[1764066751878,2.9,136.4,136.31,106.05399838]
[1764066751879,2.9,136.4,136.35,2.91]
[1764066752282,131.02149838,136.44,136.34,6.6033]
[1764066752283,2.95042807,136.39,136.37,2.91]
[1764066752574,2.95622886,136.39,136.37,2.96054693]
[1764066753467,0.05622886,136.39,136.37,2.96054693]
[1764066754069,0.05622886,136.39,136.38,2.91]
[1764066756683,2.9,136.46,136.39,2.85]
[1764066756979,28.37439838,136.48,136.39,2.85]
[1764066756980,2.9,136.48,136.4,3.31439838]
[1764066757181,2.9,136.48,136.41,2.85]
[1764066757973,2.94681007,136.46,136.43,2.89724004]
[1764066759884,0.04681007,136.46,136.43,2.89724004]
[1764066761779,2.94681007,136.46,136.43,0.04724004]
[1764066763785,9.54451007,136.46,136.43,0.04724004]
[1764066763983,2.9,136.45,136.43,0.04724004]
[1764066764592,2.9,136.44,136.43,0.04724004]
[1764066765586,2.9,136.43,136.38,2.85]
[1764066766592,2.9553669,136.42,136.39,0.04714626]
[1764066767591,3.02,136.41,136.39,0.04714626]
[1764066768094,3.02,136.41,136.39,2.87714626]
[1764066769890,3.0753669,136.42,136.39,2.87714626]
[1764066774601,0.0553669,136.42,136.39,2.87714626]
[1764066775591,3.0753669,136.42,136.39,2.87714626]
[1764066780396,0.0553669,136.42,136.39,2.87714626]
[1764066781202,0.0553669,136.42,136.4,2.85]
[1764066783204,0.0553669,136.42,136.41,2.85]
[1764066784993,0.0553669,136.42,136.4,2.85]
[1764066785199,3.1953669,136.42,136.39,2.89714626]
[1764066786596,3.14,136.41,136.39,0.04714626]
[1764066787507,3.1953669,136.42,136.39,2.89714626]
[1764066787898,3.1953669,136.42,136.39,0.04714626]
[1764066788508,3.1953669,136.42,136.39,2.89714626]
[1764066790106,0.0553669,136.42,136.39,2.89714626]
[1764066791002,3.14,136.48,136.41,2.85]
[1764066791605,3.14,136.48,136.43,2.85]
[1764066791799,3.14,136.51,136.43,2.85]
[1764066791998,3.14,136.51,136.46,0.04759646]
[1764066792200,0.04633623,136.48,136.46,2.89759646]
[1764066793211,3.18633623,136.48,136.46,2.89759646]
[1764066793406,3.18633623,136.48,136.46,0.04759646]
[1764066793912,3.18633623,136.48,136.46,2.89759646]
[1764066795406,0.04633623,136.48,136.46,2.89759646]
[1764066796916,3.18633623,136.48,136.46,0.04759646]
[1764066797808,3.18633623,136.48,136.46,2.89759646]
[1764066798014,0.04633623,136.48,136.46,2.89759646]
[1764066802618,0.04633623,136.48,136.46,9.49499646]
[1764066802819,0.04633623,136.48,136.47,2.85]
[1764066804223,3.23633623,136.48,136.46,0.04759646]
[1764066804420,0.04633623,136.48,136.46,2.89759646]
[1764066806527,0.04633623,136.48,136.47,2.85]
[1764066806825,3.19,136.52,136.47,2.85]
[1764066807021,3.19,136.52,136.47,9.447]
[1764066807223,3.19,136.52,136.48,2.85]
[1764066807815,3.23692267,136.51,136.48,2.85]
[1764066808028,3.23692267,136.51,136.48,2.90038112]
[1764066808228,0.04692267,136.51,136.48,2.90038112]
[1764066808421,0.04692267,136.51,136.49,2.85]
[1764066809121,0.04692267,136.51,136.49,9.446]
[1764066809326,0.04692267,136.51,136.5,2.85]
[1764066811530,0.04692267,136.51,136.48,2.16629494]
[1764066811531,3.23692267,136.51,136.48,0.05038112]
[1764066811733,0.04692267,136.51,136.48,2.90038112]
[1764066812625,0.04692267,136.51,136.48,9.49688112]
[1764066812829,0.04692267,136.51,136.49,2.85]
[1764066813830,0.04692267,136.51,136.5,2.85]
[1764066816618,0.04692267,136.51,136.5,4.96591382]
[1764066817020,0.04692267,136.51,136.5,2.85]
[1764066817324,0.04692267,136.51,136.49,2.85]
[1764066817534,3.23692267,136.51,136.48,0.05038112]
[1764066817727,3.23692267,136.51,136.48,2.90038112]
[1764066819932,3.23692267,136.51,136.48,0.05038112]
[1764066825441,3.23692267,136.51,136.48,2.90038112]
[1764066826644,0.04692267,136.51,136.48,5.01629494]
[1764066826834,0.04692267,136.51,136.5,4.96591382]
[1764066827238,0.04692267,136.51,136.5,2.85]
[1764066827443,3.10692267,136.51,136.48,5.01629494]
[1764066827744,3.10692267,136.51,136.49,2.85]
[1764066828045,0.04692267,136.51,136.49,2.85]
[1764066828943,0.04692267,136.51,136.5,4.96591382]
[1764066832243,3.06,136.56,136.52,2.85]
[1764066832436,3.06,136.56,136.52,2.11591382]
[1764066832643,3.06,136.56,136.52,4.96591382]
[1764066833143,3.06,136.56,136.53,0.05275911]
[1764066834451,3.06,136.57,136.54,4.96591382]
[1764066834661,5.48322138,136.58,136.55,2.85]
[1764066835052,2.42322138,136.58,136.56,4.96591382]
[1764066835353,5.48322138,136.58,136.56,4.96591382]
[1764066835651,5.48322138,136.58,136.53,0.05275911]
[1764066835652,3.06,136.57,136.53,2.90275911]
[1764066836154,3.06,136.56,136.53,2.90275911]
[1764066837146,3.06,136.56,136.53,0.05275911]
[1764066837554,3.1,136.55,136.53,0.05275911]
[1764066839350,9.6925,136.57,136.54,2.84]
[1764066839555,3.1,136.56,136.53,0.05275911]
[1764066839756,9.6928,136.56,136.53,0.05275911]
[1764066839955,3.1,136.55,136.53,0.05275911]
[1764066843162,3.1,136.57,136.54,2.84]
[1764066843362,2.42322138,136.58,136.54,2.84]
[1764066843659,5.52322138,136.58,136.54,2.84]
[1764066844455,5.52322138,136.58,136.55,2.84]
[1764066844863,3.1,136.57,136.55,2.84]
[1764066845664,2.42322138,136.58,136.57,2.84]
[1764066846057,2.42322138,136.58,136.56,5.0042093]
[1764066846562,2.42322138,136.58,136.57,2.84]
[1764066847066,3.1,136.63,136.57,2.84]
[1764066847361,3.1,136.63,136.59,2.84]
[1764066847562,3.1,136.63,136.6,0.04792674]
[1764066848166,3.1,136.65,136.6,0.04792674]
[1764066848365,3.1,136.65,136.6,2.88792674]
[1764066849467,3.1,136.65,136.61,4.95591382]
[1764066850268,3.1,136.64,136.6,0.04792674]
[1764066850572,3.1,136.64,136.61,0.05381938]
[1764066851564,3.1,136.64,136.61,2.89381938]
[1764066851764,3.1,136.66,136.62,2.84]
[1764066851961,3.1,136.66,136.61,0.05381938]
[1764066852273,3.1,136.66,136.61,2.89381938]
[1764066853773,3.1,136.65,136.61,2.89381938]
[1764066853974,3.1,136.65,136.61,0.05381938]
[1764066854368,3.1,136.65,136.61,2.89381938]
[1764066854572,3.1,136.65,136.61,24.6323451]
[1764066854772,3.1,136.65,136.61,2.89381938]
[1764066857975,2.99,136.69,136.65,2.84]
[1764066858173,2.99,136.69,136.66,0.05304912]
[1764066859975,2.99,136.73,136.66,2.89304912]
[1764066860184,2.99,136.75,136.69,2.11591382]
[1764066860383,2.99,136.75,136.68,4.95591382]
[1764066860582,2.99,136.72,136.67,2.11591382]
[1764066860883,2.99,136.72,136.61,22.00497584]
[1764066860884,2.99,136.68,136.62,5.00591382]
[1764066861174,2.99,136.67,136.62,2.89]
[1764066861380,2.99,136.66,136.61,24.12088966]
[1764066861576,2.99,136.66,136.61,5.00591382]
[1764066861781,2.99,136.64,136.62,0.05089265]
[1764066866384,0.04968627,136.65,136.63,2.89]
[1764066868687,2.99,136.69,136.63,2.89]
[1764066869480,2.99,136.69,136.62,3.2968195]
[1764066869481,2.99,136.69,136.64,62.0]
[1764066869787,2.99,136.69,136.65,0.04807138]
[1764066871085,2.99,136.7,136.66,2.89]
[1764066874193,2.99,136.7,136.65,0.04807138]
[1764066874494,2.99,136.7,136.65,2.93807138]
[1764066877386,2.99,136.72,136.66,2.89]
[1764066878086,2.99,136.7,136.66,2.89]
[1764066878286,2.99,136.7,136.67,0.05262509]
[1764066882080,9.5761,136.7,136.67,0.05262509]
[1764066882287,2.99,136.69,136.67,0.05262509]
[1764066882591,105.7276195,136.73,136.67,0.05262509]
[1764066882592,2.99,136.72,136.68,2.89]
[1764066883191,2.99,136.72,136.67,2.94262509]
[1764066884094,2.99,136.72,136.67,64.94262509]
[1764066885301,2.99,136.72,136.68,2.89]
[1764066886392,2.99,136.76,136.69,2.89]
[1764066886581,2.99,136.76,136.71,0.05428338]
[1764066887096,3.04,136.73,136.71,0.05428338]
[1764066887798,3.04,136.74,136.71,0.05428338]
[1764066888095,3.04,136.73,136.71,0.05428338]
[1764066888282,3.04,136.72,136.71,0.05428338]
[1764066894005,3.04,136.69,136.65,9.4782]
[1764066894205,3.04,136.69,136.66,2.93]
[1764066895007,3.0919017,136.69,136.66,2.97909328]
[1764066899404,0.0519017,136.69,136.67,2.94]
[1764066899713,3.0319017,136.69,136.67,2.94]
[1764066900002,0.0519017,136.69,136.67,2.94]
[1764066901702,0.0519017,136.69,136.66,0.04909328]
[1764066901703,3.0319017,136.69,136.66,0.04909328]
[1764066902205,3.0319017,136.69,136.66,2.98909328]
[1764066903706,3.0319017,136.69,136.66,0.04909328]
[1764066903707,105.4921017,136.69,136.66,0.04909328]
[1764066903909,2.98,136.64,136.63,22.41987413]
[1764066904110,2.98,136.64,136.6,16.4277667]
[1764066904299,6.5905,136.61,136.58,2.94]
[1764066904500,2.98,136.6,136.56,2.94]
[1764066904902,0.04757051,136.59,136.57,2.99281724]
[1764066905098,3.02757051,136.59,136.57,0.05281724]
[1764066906008,2.98,136.57,136.51,16.4277667]
[1764066906210,2.98,136.57,136.51,2.94]
[1764066906410,2.98,136.57,136.53,2.94]
[1764066906705,3.2968195,136.6,136.53,2.94]
[1764066906706,2.98,136.59,136.53,62.0]
[1764066907215,2.98,136.56,136.55,0.05262341]
[1764066907609,105.5509,136.54,136.47,16.4277667]
[1764066907908,2.98,136.52,136.47,2.94]
[1764066908216,2.98,136.52,136.47,24.92724994]
[1764066908514,2.98,136.52,136.47,2.94]
[1764066908714,3.0336068,136.51,136.48,0.05326388]
[1764066912420,3.0336068,136.51,136.48,2.99326388]
[1764066912709,3.0336068,136.51,136.48,0.05326388]
[1764066921319,9.6290068,136.51,136.48,0.05326388]
[1764066921522,2.97,136.5,136.48,0.05326388]
[1764066930525,9.5657,136.5,136.48,0.05326388]
[1764066930740,2.97,136.49,136.45,87.46648834]
[1764066931129,2.97,136.49,136.45,84.51648834]
[1764066931529,2.97,136.48,136.45,84.51648834]
[1764066931731,0.05026947,136.48,136.46,2.95]
[1764066932133,0.05026947,136.48,136.46,11.66302383]
[1764066932326,0.05026947,136.48,136.47,2.95]
[1764066933927,0.05026947,136.48,136.45,25.51868488]
[1764066933928,3.02026947,136.48,136.45,25.51868488]
[1764066934335,3.02026947,136.48,136.46,2.95]
[1764066934638,0.05026947,136.48,136.46,64.95]
[1764066934836,3.02026947,136.48,136.46,64.95]
[1764066937135,0.05026947,136.48,136.46,64.95]
[1764066937543,0.05026947,136.48,136.47,2.95]
[1764066937745,0.05026947,136.48,136.46,64.95]
[1764066941649,0.05026947,136.48,136.47,2.95]
[1764066944647,3.02026947,136.48,136.46,62.0]
[1764066945147,3.02026947,136.48,136.46,64.95]
[1764066945345,0.05026947,136.48,136.45,22.56868488]
[1764066945545,2.97,136.47,136.45,22.56868488]
[1764066945754,2.97,136.43,136.34,3.0]
[1764066945943,2.97,136.4,136.34,3.0]
[1764066946751,3.01961111,136.38,136.36,0.0500408]
[1764066947146,0.04961111,136.38,136.36,2.9900408]
[1764066948347,0.04961111,136.38,136.36,64.9900408]
[1764066948551,0.04961111,136.38,136.37,2.94]
[1764066954043,3.17961111,136.38,136.36,62.0500408]
[1764066954247,3.17961111,136.38,136.36,0.0500408]
[1764066954445,3.17961111,136.38,136.36,2.9900408]
[1764066959558,3.17961111,136.38,136.36,0.0500408]
[1764066961157,3.17961111,136.38,136.36,3.0500408]
[1764066964762,3.17961111,136.38,136.36,0.0500408]
[1764066965668,3.17961111,136.38,136.36,3.0500408]
[1764066965970,0.04961111,136.38,136.36,3.0500408]
[1764066967059,0.04961111,136.38,136.36,5.16556463]
[1764066967260,0.04961111,136.38,136.37,3.0]
[1764066968571,5.30513494,136.38,136.33,62.0]
[1764066968764,3.14,136.37,136.33,3.0]
[1764066969769,3.14,136.37,136.34,3.05598305]
[1764066973080,9.742,136.37,136.34,3.05598305]
[1764066973262,3.14,136.36,136.34,3.05598305]
[1764066977562,3.14,136.36,136.34,0.05598305]
[1764066977563,9.7426,136.36,136.34,0.05598305]
[1764066977765,3.09,136.35,136.34,0.05598305]
[1764066978487,3.09,136.33,136.29,2.88]
[1764066979173,3.09,136.31,136.26,27.25552383]
[1764066979365,3.09,136.31,136.27,2.88]
[1764066979560,0.05401219,136.3,136.28,2.93091101]
[1764066983980,0.05401219,136.3,136.29,2.88]
[1764066987283,0.05401219,136.3,136.28,2.93091101]
[1764066990277,0.05401219,136.3,136.28,64.93091101]
[1764066990470,0.05401219,136.3,136.29,2.88]
[1764066995686,3.14401219,136.3,136.28,2.93091101]
[1764066996286,0.05401219,136.3,136.28,2.93091101]
[1764066998483,3.14401219,136.3,136.28,2.93091101]
[1764066998686,3.14401219,136.3,136.28,0.05091101]
[1764066999093,0.05401219,136.3,136.29,2.88]
[1764067008906,2.93,136.36,136.31,2.96]
[1764067009214,2.93,136.38,136.31,2.96]
[1764067009907,0.05482516,136.36,136.34,2.96]
[1764067010307,2.98482516,136.36,136.34,2.96]
[1764067011009,2.98482516,136.36,136.33,0.05580576]
[1764067012608,2.93,136.34,136.33,0.05580576]
[1764067020610,3.14,136.35,136.33,3.01580576]
[1764067021815,3.14,136.35,136.33,0.05580576]
[1764067025230,3.14,136.35,136.33,3.01580576]
[1764067025416,3.14,136.35,136.33,0.05580576]
[1764067027026,3.14,136.35,136.33,3.01580576]
[1764067027525,0.05482516,136.36,136.33,3.01580576]
[1764067028934,0.05482516,136.36,136.35,2.96]
[1764067029129,6.5999,136.42,136.35,2.96]
[1764067029130,9.7399,136.42,136.35,2.96]
[1764067030033,0.05036007,136.4,136.37,2.99774576]
[1764067030232,3.19036007,136.4,136.37,2.99774576]
[1764067030427,0.05036007,136.4,136.37,2.99774576]
[1764067032127,0.05036007,136.4,136.38,2.95]
[1764067032527,0.05036007,136.4,136.38,9.5513]
[1764067032730,0.05036007,136.4,136.39,2.95]
[1764067034532,0.05036007,136.4,136.38,2.95]
[1764067037330,0.05036007,136.4,136.39,2.91]
[1764067037535,2.89,136.39,136.31,2.91]
[1764067038137,2.89,136.39,136.33,2.91]
[1764067038637,0.04885039,136.37,136.35,2.96378715]
[1764067040236,2.93885039,136.37,136.35,2.96378715]
[1764067040727,0.04885039,136.37,136.35,2.96378715]
[1764067041740,2.93885039,136.37,136.35,0.05378715]
[1764067041931,2.93885039,136.37,136.31,25.29791686]
[1764067041932,2.89,136.36,136.3,2.91]
[1764067042629,2.89,136.34,136.3,2.91]
[1764067042833,2.89,136.38,136.3,2.91]
[1764067043337,0.0542393,136.35,136.33,2.9634463]
[1764067044034,2.9442393,136.35,136.33,2.9634463]
[1764067044637,2.9442393,136.35,136.33,0.0534463]
[1764067045043,9.5472393,136.35,136.33,0.0534463]
[1764067045240,2.9442393,136.35,136.33,0.0534463]
[1764067046040,2.9442393,136.35,136.33,2.9634463]
[1764067046041,0.0542393,136.35,136.33,2.9634463]
[1764067046240,2.9442393,136.35,136.33,0.0534463]
[1764067048946,2.9442393,136.35,136.33,2.9634463]
[1764067050854,0.0542393,136.35,136.33,2.9634463]
[1764067056152,9.5471393,136.35,136.33,0.0534463]
[1764067056454,2.9442393,136.35,136.33,0.0534463]
[1764067057648,2.9442393,136.35,136.33,2.9634463]
[1764067057849,0.0542393,136.35,136.33,2.9634463]
[1764067066464,2.9442393,136.35,136.33,0.0534463]
[1764067075582,2.91,136.34,136.33,0.0534463]
[1764067079384,5.03044571,136.34,136.33,0.0534463]
[1764067080880,2.99,136.3,136.27,25.54352035]
[1764067081082,2.99,136.3,136.27,22.54352035]
[1764067081280,2.99,136.3,136.25,3.0]
[1764067081781,2.99,136.3,136.26,3.0468512]
[1764067081782,3.03798193,136.29,136.26,3.0468512]
[1764067091391,3.03798193,136.29,136.27,3.0]
[1764067091392,0.04798193,136.29,136.27,3.0]
[1764067091695,0.04798193,136.29,136.28,3.0]
[1764067092387,0.04798193,136.29,136.26,0.0468512]
[1764067092592,3.03798193,136.29,136.26,3.0468512]
[1764067096892,9.64388193,136.29,136.26,0.0468512]
[1764067097087,2.88,136.28,136.26,0.0468512]
[1764067098199,2.88,136.27,136.26,0.0468512]
[1764067098593,2.88,136.28,136.26,2.9868512]
[1764067098991,2.88,136.28,136.26,0.0468512]
[1764067099803,2.88,136.27,136.26,0.0468512]
[1764067105911,2.92798193,136.29,136.26,2.9868512]
[1764067111505,2.92798193,136.29,136.26,0.0468512]
[1764067111910,2.92798193,136.29,136.26,2.9868512]
[1764067130237,0.04798193,136.29,136.26,9.5940512]
[1764067130540,0.04798193,136.29,136.27,2.94]
[1764067132046,0.04798193,136.29,136.28,16.53636898]
[1764067134742,0.04798193,136.29,136.28,2.94]
[1764067140848,2.96798193,136.29,136.28,2.94]
[1764067141042,2.96798193,136.29,136.27,3.01]
[1764067142554,0.04798193,136.29,136.27,3.01]
[1764067146457,0.04798193,136.29,136.28,16.59796296]
[1764067158163,3.13,136.34,136.29,3.0]
[1764067158363,3.13,136.34,136.31,3.0]
[1764067159165,3.18566,136.34,136.31,3.04648526]
[1764067160157,3.13,136.33,136.31,3.04648526]
[1764067163059,0.05566,136.34,136.31,3.04648526]
[1764067163365,0.05566,136.34,136.33,3.0]
[1764067164862,0.05566,136.34,136.33,16.58907978]
[1764067165365,0.05566,136.34,136.33,3.0]
[1764067165753,3.13,136.38,136.34,3.0]
[1764067165958,3.13,136.38,136.35,3.0]
[1764067166668,3.18034214,136.38,136.35,3.05028809]
[1764067166961,0.05034214,136.38,136.35,3.05028809]
[1764067167163,0.05034214,136.38,136.35,16.63936787]
[1764067167365,0.05034214,136.38,136.36,3.0]
[1764067168758,3.18034214,136.38,136.36,3.0]
[1764067168959,3.18034214,136.38,136.35,0.05028809]
[1764067169156,3.18034214,136.38,136.35,3.05028809]
[1764067170168,0.05034214,136.38,136.35,3.05028809]
[1764067172168,0.05034214,136.38,136.36,3.0]
[1764067173074,3.18034214,136.38,136.36,3.0]
[1764067174276,3.18034214,136.38,136.35,3.05028809]
[1764067181089,3.18034214,136.38,136.35,0.05028809]
[1764067181393,3.18034214,136.38,136.35,3.05028809]
[1764067188594,0.05034214,136.38,136.35,3.05028809]
[1764067188799,0.05034214,136.38,136.36,2.95]
[1764067189189,3.05,136.43,136.37,2.95]
[1764067190292,3.05,136.4,136.39,0.05048657]
[1764067191793,0.04724673,136.41,136.39,3.00048657]
[1764067191999,3.09724673,136.41,136.39,3.00048657]
[1764067192593,0.04724673,136.41,136.39,3.00048657]
[1764067192988,3.09724673,136.41,136.39,3.00048657]
[1764067193193,3.09724673,136.41,136.39,0.05048657]
[1764067193999,3.09724673,136.41,136.39,3.00048657]
[1764067198907,3.09724673,136.41,136.39,0.05048657]
[1764067199308,3.09724673,136.41,136.39,3.05048657]
[1764067199811,3.09724673,136.41,136.39,0.05048657]
[1764067200908,2.96,136.38,136.33,16.58907978]
[1764067201298,2.96,136.38,136.33,3.0]
[1764067201900,3.01558502,136.37,136.34,3.05301581]
[1764067202808,0.05558502,136.37,136.35,3.0]
[1764067203999,3.01558502,136.37,136.35,3.0]
[1764067206604,0.05558502,136.37,136.35,3.0]
[1764067209220,0.05558502,136.37,136.35,16.58907978]
[1764067210027,3.01558502,136.37,136.34,13.64209559]
[1764067210916,3.01558502,136.37,136.34,16.64209559]
[1764067212118,3.01558502,136.37,136.34,13.64209559]
[1764067212313,3.01558502,136.37,136.34,3.05301581]
[1764067212715,3.01558502,136.37,136.35,3.0]
[1764067213622,0.05558502,136.37,136.35,3.0]
[1764067214016,0.05558502,136.37,136.35,16.58907978]
[1764067215819,3.01558502,136.37,136.35,13.58907978]
[1764067216022,3.01558502,136.37,136.34,0.05301581]
[1764067217025,2.96,136.35,136.34,0.05301581]
[1764067219321,2.96,136.35,136.34,0.00301581]
[1764067219521,2.96,136.35,136.3,25.08347762]
[1764067219522,3.1,136.34,136.3,25.08347762]
[1764067219724,3.1,136.34,136.31,3.06]
[1764067220428,3.15149309,136.34,136.31,3.10722226]
[1764067222125,0.05149309,136.34,136.31,3.10722226]